[Event "RUS-ch Blitz Women 2018"]
[Site "Sochi"]
[Date "2018.10.07"]
[Round "12"]
[White "Shuvalova, Polina"]
[Black "Gritsayeva, Oksana"]
[Result "1-0"]
[ECO "B40"]
[WhiteElo "2421"]
[BlackElo "2378"]
[Annotator "ChessBase"]
[PlyCount "119"]
[EventDate "2018.10.07"]
[EventType "swiss"]
[EventCountry "RUS"]
[SourceTitle "playchess.com"]
[Source "ChessBase"]
[SourceQuality "1"]
[TimeControl "180+2"]

1. e4 {[%emt 0:00:00]} c5 {[%emt 0:00:00]} 2. Nf3 {[%emt 0:00:00]} e6 {[%emt 0:00:00]} 3. c3 {[%emt 0:00:01]} d5 {[%emt 0:00:01]} 4. exd5 {[%emt 0:00:01]} Qxd5 {[%emt 0:00:02]} 5. d4 {[%emt 0:00:00]} Nf6 {[%emt 0:00:01]} 6. Na3 {[%emt 0:00:02]} cxd4 {[%emt 0:00:10]} 7. Nb5 {[%emt 0:00:07]} Qd8 {[%emt 0:00:03]} 8. Qxd4 {[%emt 0:00:05]} Qxd4 {[%emt 0:00:40]} 9. Nfxd4 {[%emt 0:00:02]} Na6 {[%emt 0:00:02]} 10. Be2 {[%emt 0:00:09]} Bc5 {[%emt 0:00:17]} 11. O-O {[%emt 0:00:04]} O-O {[%emt 0:00:05]} 12. Bg5 {[%emt 0:00:16]} Bd7 {[%emt 0:00:11]} 13. Bf3 {[%emt 0:00:17]} Bxd4 {[%emt 0:00:21]} 14. Nxd4 {[%emt 0:00:01]} Nc5 {[%emt 0:00:17]} 15. Rad1 {[%emt 0:00:14]} Rac8 {[%emt 0:00:21]} 16. Bxf6 {[%emt 0:00:13]} gxf6 {[%emt 0:00:01]} 17. b3 {[%emt 0:00:01]} b6 {[%emt 0:00:06]} 18. c4 {[%emt 0:00:03]} Rfd8 {[%emt 0:00:07]} 19. Rfe1 {[%emt 0:00:01]} Be8 {[%emt 0:00:06]} 20. g3 {[%emt 0:00:03]} Rd6 {[%emt 0:00:07]} 21. Nc2 {[%emt 0:00:41]} Rcd8 {[%emt 0:00:05]} 22. Nb4 {[%emt 0:00:11]} Kf8 {[%emt 0:00:11]} 23. Rxd6 {[%emt 0:00:09]} Rxd6 {[%emt 0:00:01]} 24. Rd1 {[%emt 0:00:01]} Ke7 {[%emt 0:00:07]} 25. Kg2 {[%emt 0:00:05]} f5 {[%emt 0:00:13]} 26. h4 {[%emt 0:00:08]} a5 {[%emt 0:00:07]} 27. Nc2 {[%emt 0:00:06]} Rxd1 {[%emt 0:00:03]} 28. Bxd1 {[%emt 0:00:00]} Kd6 {[%emt 0:00:05]} 29. Nd4 {[%emt 0:00:15]} Nd3 {[%emt 0:00:04]} 30. Bc2 {[%emt 0:00:14]} Nb4 {[%emt 0:00:03]} 31. Bb1 {[%emt 0:00:03]} Kc5 {[%emt 0:00:02]} 32. Ne2 {[%emt 0:00:04]} Bc6+ {[%emt 0:00:01]} 33. f3 {[%emt 0:00:01]} Bb7 {[%emt 0:00:02]} 34. Kf2 {[%emt 0:00:01]} Nc6 {[%emt 0:00:01]} 35. Ke3 {[%emt 0:00:02]} b5 {[%emt 0:00:03]} 36. cxb5 {[%emt 0:00:05]} Kxb5 {[%emt 0:00:00]} 37. Bd3+ {[%emt 0:00:02]} Kb4 {[%emt 0:00:02]} 38. Kd2 {[%emt 0:00:12]} Ka3 {[%emt 0:00:02]} 39. Nc3 {[%emt 0:00:03]} Nb4 {[%emt 0:00:04]} 40. Bc4 {[%emt 0:00:07]} Nxa2 {[%emt 0:00:03]} 41. Nxa2 {[%emt 0:00:02]} Kxa2 42. b4+ {[%emt 0:00:01]} Ka3 {[%emt 0:00:03]} 43. bxa5 {[%emt 0:00:01]} Kb4 {[%emt 0:00:01]} 44. a6 {[%emt 0:00:02]} Bxf3 {[%emt 0:00:02]} 45. Be2 {[%emt 0:00:04]} Ba8 {[%emt 0:00:02]} 46. Ke3 {[%emt 0:00:01]} Ka5 {[%emt 0:00:01]} 47. Kf4 {[%emt 0:00:01]} Kb6 {[%emt 0:00:02]} 48. Ke5 {[%emt 0:00:02]} Be4 {[%emt 0:00:03]} 49. Kf6 {[%emt 0:00:01]} Ka7 {[%emt 0:00:03]} 50. Kxf7 {[%emt 0:00:02]} e5 {[%emt 0:00:00]} 51. Kf6 {[%emt 0:00:01]} f4 {[%emt 0:00:01]} 52. g4 {[%emt 0:00:05]} f3 {[%emt 0:00:02]} 53. Bf1 {[%emt 0:00:01]} Bc6 {[%emt 0:00:03]} 54. Kxe5 {[%emt 0:00:02]} Bd7 {[%emt 0:00:01]} 55. Kf4 {[%emt 0:00:01]} Bc8 {[%emt 0:00:02]} 56. Kxf3 {[%emt 0:00:02]} Bxa6 {[%emt 0:00:03]} 57. Bxa6 {[%emt 0:00:02]} Kxa6 {[%emt 0:00:00]} 58. Kf4 {[%emt 0:00:01]} Kb6 {[%emt 0:00:01]} 59. Ke5 {[%emt 0:00:01]} Kc6 {[%emt 0:00:00]} 60. Ke4 {Kd5+} 1-0

[Event "RUS-ch Blitz Women 2018"]
[Site "Sochi"]
[Date "2018.10.07"]
[Round "12"]
[White "Ambartsumova, Karina"]
[Black "Voit, Daria"]
[Result "0-1"]
[ECO "A46"]
[WhiteElo "2379"]
[BlackElo "2352"]
[Annotator "ChessBase"]
[PlyCount "31"]
[EventDate "2018.10.07"]
[EventType "swiss"]
[EventCountry "RUS"]
[SourceTitle "playchess.com"]
[Source "ChessBase"]
[SourceQuality "1"]
[TimeControl "180+2"]

1. d4 {[%emt 0:00:00]} Nf6 {[%emt 0:00:00]} 2. Nf3 {[%emt 0:00:01]} e6 {[%emt 0:00:00]} 3. Bf4 {[%emt 0:00:10]} d5 {[%emt 0:00:18]} 4. e3 c5 5. c3 {[%emt 0:00:07]} Nc6 {[%emt 0:00:03]} 6. Nbd2 {[%emt 0:00:01]} Bd6 {[%emt 0:00:01]} 7. Bg3 {[%emt 0:00:04]} O-O {[%emt 0:00:01]} 8. Bb5 {[%emt 0:00:03]} a6 {[%emt 0:00:18]} 9. Bxc6 {[%emt 0:00:10]} bxc6 {[%emt 0:00:01]} 10. Qa4 {[%emt 0:00:02]} Bxg3 {[%emt 0:00:15]} 11. fxg3 {[%emt 0:00:01]} Qb6 {[%emt 0:00:01]} 12. h4 {[%emt 0:00:09]} Nd7 {[%emt 0:00:20]} 13. Qa3 {[%emt 0:00:50]} a5 {[%emt 0:00:50]} 14. O-O {[%emt 0:00:23]} Ba6 {[%emt 0:00:14]} 15. c4 {[%emt 0:00:01]} cxd4 {[%emt 0:00:12]} 16. Rfc1 {[%emt 0:00:25]} 0-1

[Event "RUS-ch Blitz Women 2018"]
[Site "Sochi"]
[Date "2018.10.07"]
[Round "12"]
[White "Vasilevich, Tatjana"]
[Black "Guseva, Marina"]
[Result "0-1"]
[ECO "A12"]
[WhiteElo "2360"]
[BlackElo "2292"]
[Annotator "ChessBase"]
[PlyCount "68"]
[EventDate "2018.10.07"]
[EventType "swiss"]
[EventCountry "RUS"]
[SourceTitle "playchess.com"]
[Source "ChessBase"]
[SourceQuality "1"]
[TimeControl "180+2"]

1. c4 {[%emt 0:00:00]} c6 {[%emt 0:00:00]} 2. Nf3 {[%emt 0:00:01]} d5 {[%emt 0:00:00]} 3. b3 {[%emt 0:00:01]} Bf5 {[%emt 0:00:04]} 4. g3 {[%emt 0:00:01]} e6 {[%emt 0:00:02]} 5. Bg2 {[%emt 0:00:01]} Nd7 {[%emt 0:00:02]} 6. O-O {[%emt 0:00:02]} h6 {[%emt 0:00:01]} 7. Bb2 {[%emt 0:00:01]} Ngf6 {[%emt 0:00:01]} 8. d3 {[%emt 0:00:02]} Be7 {[%emt 0:00:03]} 9. Nbd2 {[%emt 0:00:05]} O-O {[%emt 0:00:02]} 10. Re1 {[%emt 0:00:05]} Bh7 {[%emt 0:00:07]} 11. e4 {[%emt 0:00:01]} Nc5 {[%emt 0:00:07]} 12. Qc2 {[%emt 0:01:04]} dxe4 {[%emt 0:00:04]} 13. dxe4 {[%emt 0:00:04]} Qd3 {[%emt 0:00:33]} 14. Qc1 {[%emt 0:01:04]} Rad8 {[%emt 0:00:45]} 15. Bf1 {[%emt 0:00:03]} Qd7 {[%emt 0:00:03]} 16. Qc2 {[%emt 0:00:02]} Nd3 {[%emt 0:00:09]} 17. Bxd3 {[%emt 0:00:05]} Qxd3 {[%emt 0:00:01]} 18. Qc1 {[%emt 0:00:13]} Bb4 {[%emt 0:00:47]} 19. Bxf6 {[%emt 0:00:08]} gxf6 {[%emt 0:00:02]} 20. Rd1 {[%emt 0:00:04]} Bxe4 {[%emt 0:00:24]} 21. Nxe4 {[%emt 0:00:05]} Qxe4 {[%emt 0:00:12]} 22. Nh4 {[%emt 0:00:13]} Kg7 {[%emt 0:00:02]} 23. Qb2 {[%emt 0:00:04]} Rd3 {[%emt 0:00:05]} 24. a3 {[%emt 0:00:03]} Bc3 {[%emt 0:00:01]} 25. Qc2 {[%emt 0:00:03]} Rxd1+ {[%emt 0:00:03]} 26. Qxd1 {[%emt 0:00:02]} Bxa1 {[%emt 0:00:02]} 27. Qxa1 {[%emt 0:00:01]} Rd8 {[%emt 0:00:01]} 28. Ng2 {[%emt 0:00:05]} Qc2 {[%emt 0:00:04]} 29. Ne3 {[%emt 0:00:01]} Qxb3 {[%emt 0:00:02]} 30. Qf1 {[%emt 0:00:03]} Qd3 {[%emt 0:00:02]} 31. Qh3 {[%emt 0:00:02]} Qe4 {[%emt 0:00:02]} 32. Qh5 {[%emt 0:00:03]} Rd2 {[%emt 0:00:03]} 33. h4 {[%emt 0:00:05]} Rb2 {[%emt 0:00:02]} 34. Qd1 {[%emt 0:00:03]} Rb1 {[%emt 0:00:01]} 0-1

[Event "RUS-ch Blitz Women 2018"]
[Site "Sochi"]
[Date "2018.10.07"]
[Round "12"]
[White "Charochkina, Daria"]
[Black "Dordzhieva, Dinara"]
[Result "0-1"]
[ECO "D35"]
[WhiteElo "2344"]
[BlackElo "2340"]
[Annotator "ChessBase"]
[PlyCount "84"]
[EventDate "2018.10.07"]
[EventType "swiss"]
[EventCountry "RUS"]
[SourceTitle "playchess.com"]
[Source "ChessBase"]
[SourceQuality "1"]
[TimeControl "180+2"]

1. d4 {[%emt 0:00:00]} d5 {[%emt 0:00:00]} 2. c4 {[%emt 0:00:00]} e6 {[%emt 0:00:00]} 3. Nc3 {[%emt 0:00:01]} Nf6 {[%emt 0:00:01]} 4. cxd5 exd5 {[%emt 0:00:01]} 5. Bg5 {[%emt 0:00:02]} Be7 {[%emt 0:00:00]} 6. e3 {[%emt 0:00:01]} c6 {[%emt 0:00:02]} 7. Qc2 {[%emt 0:00:01]} Nbd7 {[%emt 0:00:02]} 8. Bd3 {[%emt 0:00:02]} Nh5 {[%emt 0:00:01]} 9. Bxe7 Qxe7 {[%emt 0:00:01]} 10. Nge2 {[%emt 0:00:16]} g6 {[%emt 0:00:01]} 11. O-O {[%emt 0:00:06]} O-O {[%emt 0:00:03]} 12. Rae1 {[%emt 0:00:01]} Nb6 {[%emt 0:00:11]} 13. Nc1 {[%emt 0:00:18]} Ng7 {[%emt 0:00:05]} 14. f3 {[%emt 0:00:03]} Qf6 {[%emt 0:00:34]} 15. Qf2 {[%emt 0:00:02]} Ne6 {[%emt 0:00:09]} 16. Nb3 {[%emt 0:00:28]} Re8 {[%emt 0:00:04]} 17. f4 {[%emt 0:00:11]} Ng7 {[%emt 0:00:12]} 18. e4 dxe4 {[%emt 0:00:07]} 19. Nxe4 {[%emt 0:00:03]} Qd8 {[%emt 0:00:00]} 20. Nbc5 {[%emt 0:00:23]} Nd5 {[%emt 0:00:01]} 21. Ng5 {[%emt 0:00:07]} Rxe1 {[%emt 0:00:22]} 22. Rxe1 b6 23. Nce4 {[%emt 0:00:20]} h6 {[%emt 0:00:01]} 24. Nf3 {[%emt 0:00:05]} Nxf4 {[%emt 0:00:05]} 25. Ne5 {[%emt 0:00:01]} Nge6 {[%emt 0:00:19]} 26. Nxc6 {[%emt 0:00:02]} Nxd3 {[%emt 0:00:38]} 27. Nxd8 {[%emt 0:00:01]} Nxf2 {[%emt 0:00:02]} 28. Nxf2 {[%emt 0:00:01]} Bd7 {[%emt 0:00:16]} 29. Nxe6 {[%emt 0:00:08]} Bxe6 {[%emt 0:00:01]} 30. a3 {[%emt 0:00:05]} Rd8 {[%emt 0:00:00]} 31. Rd1 {[%emt 0:00:01]} Bd5 {[%emt 0:00:02]} 32. Ng4 {[%emt 0:00:06]} Kg7 {[%emt 0:00:05]} 33. Ne3 {[%emt 0:00:01]} Be4 {[%emt 0:00:04]} 34. Kf2 {[%emt 0:00:25]} f5 {[%emt 0:00:01]} 35. g3 {[%emt 0:00:01]} Kf6 {[%emt 0:00:02]} 36. Nc4 {[%emt 0:00:04]} Rc8 {[%emt 0:00:06]} 37. Ne3 {[%emt 0:00:07]} Rd8 {[%emt 0:00:07]} 38. Nc4 {[%emt 0:00:10]} g5 {[%emt 0:00:01]} 39. Ke3 {[%emt 0:00:07]} Bd5 {[%emt 0:00:07]} 40. Ne5 {[%emt 0:00:06]} Rc8 {[%emt 0:00:00]} 41. Kd2 {[%emt 0:00:03]} f4 {[%emt 0:00:02]} 42. Rf1 {[%emt 0:00:07]} Kf5 {[%emt 0:00:02]} 0-1

[Event "RUS-ch Blitz Women 2018"]
[Site "Sochi"]
[Date "2018.10.07"]
[Round "12"]
[White "Belenkaya, Dina"]
[Black "Sukhareva, Evgeniya"]
[Result "0-1"]
[ECO "B06"]
[WhiteElo "2329"]
[BlackElo "2125"]
[Annotator "ChessBase"]
[PlyCount "110"]
[EventDate "2018.10.07"]
[EventType "swiss"]
[EventCountry "RUS"]
[SourceTitle "playchess.com"]
[Source "ChessBase"]
[SourceQuality "1"]
[TimeControl "180+2"]

1. e4 {[%emt 0:00:00]} g6 {[%emt 0:00:00]} 2. d4 {[%emt 0:00:02]} Bg7 {[%emt 0:00:00]} 3. Nc3 {[%emt 0:00:16]} d6 {[%emt 0:00:01]} 4. Nf3 {[%emt 0:00:06]} c6 {[%emt 0:00:02]} 5. a4 {[%emt 0:00:04]} Nf6 {[%emt 0:00:01]} 6. Be2 {[%emt 0:00:05]} O-O {[%emt 0:00:02]} 7. O-O Qc7 8. a5 {[%emt 0:00:09]} e5 {[%emt 0:00:01]} 9. dxe5 {[%emt 0:00:04]} dxe5 {[%emt 0:00:02]} 10. Bc4 {[%emt 0:00:07]} Nbd7 {[%emt 0:00:03]} 11. Qe2 {[%emt 0:00:02]} Nc5 {[%emt 0:00:02]} 12. h3 {[%emt 0:00:04]} Be6 {[%emt 0:00:02]} 13. Bxe6 {[%emt 0:00:02]} Nxe6 {[%emt 0:00:01]} 14. Be3 {[%emt 0:00:04]} Nf4 {[%emt 0:00:03]} 15. Qc4 {[%emt 0:00:04]} Rfd8 {[%emt 0:00:36]} 16. a6 {[%emt 0:00:34]} Ne8 {[%emt 0:00:13]} 17. axb7 {[%emt 0:00:20]} Qxb7 {[%emt 0:00:02]} 18. b3 {[%emt 0:00:05]} Nc7 {[%emt 0:00:26]} 19. Ra5 {[%emt 0:00:03]} Re8 {[%emt 0:00:15]} 20. Rfa1 {[%emt 0:00:04]} a6 {[%emt 0:00:02]} 21. Na4 {[%emt 0:00:10]} Nb5 {[%emt 0:00:15]} 22. Nc5 {[%emt 0:00:03]} Qc8 {[%emt 0:00:06]} 23. Rxa6 {[%emt 0:00:05]} Rxa6 {[%emt 0:00:03]} 24. Rxa6 {[%emt 0:00:02]} Bf8 {[%emt 0:00:28]} 25. Qa4 {[%emt 0:00:07]} Nxh3+ {[%emt 0:00:15]} 26. gxh3 {[%emt 0:00:20]} Qxh3 {[%emt 0:00:01]} 27. Nh2 {[%emt 0:00:06]} Nc3 {[%emt 0:00:25]} 28. Qc4 {[%emt 0:00:04]} Nd1 {[%emt 0:00:13]} 29. Nd7 {[%emt 0:00:23]} Qxd7 {[%emt 0:00:05]} 30. Qe2 {[%emt 0:00:10]} Nxe3 {[%emt 0:00:03]} 31. fxe3 {[%emt 0:00:01]} Rd8 {[%emt 0:00:04]} 32. Nf1 {[%emt 0:00:03]} h5 {[%emt 0:00:01]} 33. Ra5 {[%emt 0:00:07]} Qe7 {[%emt 0:00:02]} 34. Ra6 {[%emt 0:00:06]} Qf6 {[%emt 0:00:03]} 35. Qf2 {[%emt 0:00:04]} Qe6 {[%emt 0:00:01]} 36. Rb6 {[%emt 0:00:03]} Bc5 {[%emt 0:00:02]} 37. Rb7 {[%emt 0:00:01]} Bf8 {[%emt 0:00:03]} 38. c4 {[%emt 0:00:01]} Rd1 {[%emt 0:00:04]} 39. Qf3 {[%emt 0:00:03]} Rd3 {[%emt 0:00:01]} 40. Rb8 {[%emt 0:00:02]} Kg7 {[%emt 0:00:02]} 41. Rb7 {[%emt 0:00:01]} Bc5 {[%emt 0:00:01]} 42. Kf2 {[%emt 0:00:02]} Rc3 {[%emt 0:00:01]} 43. Kg2 {[%emt 0:00:02]} Rc2+ {[%emt 0:00:01]} 44. Kg1 {[%emt 0:00:01]} Ba3 {[%emt 0:00:04]} 45. Rc7 {[%emt 0:00:03]} Be7 {[%emt 0:00:01]} 46. Rb7 {[%emt 0:00:01]} Bg5 {[%emt 0:00:01]} 47. Rc7 {[%emt 0:00:02]} Bh4 {[%emt 0:00:01]} 48. Rb7 {[%emt 0:00:04]} Bf2+ {[%emt 0:00:02]} 49. Kh1 {[%emt 0:00:01]} Be1 {[%emt 0:00:01]} 50. Ra7 {[%emt 0:00:02]} Rf2 {[%emt 0:00:02]} 51. Qg3 {[%emt 0:00:03]} Rxf1+ {[%emt 0:00:01]} 52. Kg2 {[%emt 0:00:01]} Bxg3 {[%emt 0:00:02]} 53. Kxf1 {[%emt 0:00:02]} Qh3+ {[%emt 0:00:01]} 54. Ke2 {[%emt 0:00:01]} Qg2+ {[%emt 0:00:01]} 55. Kd3 {[%emt 0:00:01]} Be1 {[%emt 0:00:02] Kd4} 0-1

[Event "RUS-ch Blitz Women 2018"]
[Site "Sochi"]
[Date "2018.10.07"]
[Round "12"]
[White "Protopopova, Anastasiya"]
[Black "Vasilevich, Irina"]
[Result "0-1"]
[ECO "E00"]
[WhiteElo "2308"]
[BlackElo "2160"]
[Annotator "ChessBase"]
[PlyCount "59"]
[EventDate "2018.10.07"]
[EventType "swiss"]
[EventCountry "RUS"]
[SourceTitle "playchess.com"]
[Source "ChessBase"]
[SourceQuality "1"]
[TimeControl "180+2"]

1. d4 {[%emt 0:00:00]} e6 {[%emt 0:00:00]} 2. c4 {[%emt 0:00:02]} Bb4+ {[%emt 0:00:00]} 3. Nd2 {[%emt 0:00:04]} f5 {[%emt 0:00:01]} 4. g3 {[%emt 0:00:03]} Nf6 {[%emt 0:00:02]} 5. Bg2 {[%emt 0:00:02]} O-O {[%emt 0:00:02]} 6. Ngf3 {[%emt 0:00:03]} d6 {[%emt 0:00:03]} 7. O-O {[%emt 0:00:05]} Bxd2 {[%emt 0:00:02]} 8. Qxd2 {[%emt 0:00:06]} Nbd7 {[%emt 0:00:08]} 9. b3 {[%emt 0:00:03]} Qe8 {[%emt 0:00:03]} 10. Bb2 {[%emt 0:00:03]} a5 {[%emt 0:00:13]} 11. Rac1 {[%emt 0:00:42]} e5 {[%emt 0:00:26]} 12. dxe5 {[%emt 0:00:07]} dxe5 {[%emt 0:00:01]} 13. Ba3 {[%emt 0:00:07]} c5 {[%emt 0:00:07]} 14. Ne1 {[%emt 0:00:25]} Ra7 {[%emt 0:00:10]} 15. Nd3 {[%emt 0:00:36]} b6 {[%emt 0:00:02]} 16. Bb2 {[%emt 0:00:13]} Bb7 {[%emt 0:00:21]} 17. Bxb7 {[%emt 0:00:12]} Rxb7 {[%emt 0:00:01]} 18. Nxe5 {[%emt 0:00:14]} Nxe5 {[%emt 0:00:10]} 19. Qd6 {[%emt 0:00:04]} Nf7 {[%emt 0:00:33]} 20. Qd3 {[%emt 0:00:02]} Qe4 {[%emt 0:00:05]} 21. Qc3 {[%emt 0:00:05]} Rd7 {[%emt 0:00:09]} 22. Rcd1 {[%emt 0:00:08]} Rfd8 {[%emt 0:00:01]} 23. Rxd7 Rxd7 {[%emt 0:00:01]} 24. e3 {[%emt 0:00:12]} Qd3 {[%emt 0:00:06]} 25. Qc1 {[%emt 0:00:02]} Ng5 {[%emt 0:00:14]} 26. f4 {[%emt 0:00:06]} Nge4 {[%emt 0:00:03]} 27. Qa1 {[%emt 0:00:03]} Qxe3+ {[%emt 0:00:03]} 28. Kh1 {[%emt 0:00:01]} Rd2 {[%emt 0:00:08]} 29. Bc1 {[%emt 0:00:05]} Nf2+ {[%emt 0:00:12]} 30. Kg1 {[%emt 0:00:05]} 0-1

[Event "RUS-ch Blitz Women 2018"]
[Site "Sochi"]
[Date "2018.10.07"]
[Round "12"]
[White "Maltsevskaya, Aleksandra"]
[Black "Tomilova, Elena"]
[Result "0-1"]
[ECO "A11"]
[WhiteElo "2290"]
[BlackElo "2328"]
[Annotator "ChessBase"]
[PlyCount "108"]
[EventDate "2018.10.07"]
[EventType "swiss"]
[EventCountry "RUS"]
[SourceTitle "playchess.com"]
[Source "ChessBase"]
[SourceQuality "1"]
[TimeControl "180+2"]

1. c4 {[%emt 0:00:00]} c6 {[%emt 0:00:00]} 2. Nf3 {[%emt 0:00:14]} d5 {[%emt 0:00:00]} 3. e3 {[%emt 0:00:01]} Nf6 {[%emt 0:00:02]} 4. b3 {[%emt 0:00:01]} e6 {[%emt 0:00:03]} 5. Bb2 {[%emt 0:00:02]} Nbd7 {[%emt 0:00:01]} 6. Nc3 {[%emt 0:00:01]} Bd6 {[%emt 0:00:02]} 7. Be2 {[%emt 0:00:01]} O-O {[%emt 0:00:02]} 8. O-O {[%emt 0:00:02]} e5 {[%emt 0:00:07]} 9. cxd5 {[%emt 0:00:25]} cxd5 {[%emt 0:00:01]} 10. d3 {[%emt 0:00:02]} a6 {[%emt 0:00:01]} 11. Nh4 {[%emt 0:00:43]} g6 {[%emt 0:00:15]} 12. g3 {[%emt 0:00:02]} b5 {[%emt 0:00:10]} 13. Bf3 {[%emt 0:00:09]} Bb7 {[%emt 0:00:02]} 14. Bg2 {[%emt 0:00:01]} Qe7 {[%emt 0:00:09]} 15. Qe2 {[%emt 0:00:23]} Rac8 {[%emt 0:00:05]} 16. e4 {[%emt 0:00:13]} d4 {[%emt 0:00:07]} 17. Nd5 {[%emt 0:00:01]} Qe6 {[%emt 0:00:11]} 18. Nxf6+ {[%emt 0:00:05]} Nxf6 {[%emt 0:00:05]} 19. Bc1 {[%emt 0:00:03]} Rc7 {[%emt 0:00:33]} 20. Bd2 {[%emt 0:00:09]} Rfc8 {[%emt 0:00:04]} 21. Rac1 {[%emt 0:00:03]} Rc2 {[%emt 0:00:04]} 22. Qd1 {[%emt 0:00:11]} Rxc1 {[%emt 0:00:05]} 23. Bxc1 {[%emt 0:00:01]} Qg4 {[%emt 0:00:10]} 24. f3 {[%emt 0:00:04]} Qe6 {[%emt 0:00:04]} 25. f4 {[%emt 0:00:01]} exf4 {[%emt 0:00:20]} 26. gxf4 {[%emt 0:00:06]} Qg4 {[%emt 0:00:05]} 27. Qe1 {[%emt 0:00:24]} Bb4 {[%emt 0:00:25]} 28. Qg3 {[%emt 0:00:03]} Qxg3 {[%emt 0:00:04]} 29. hxg3 {[%emt 0:00:00]} Rc2 {[%emt 0:00:06]} 30. a3 {[%emt 0:00:04]} Bf8 {[%emt 0:00:07]} 31. Nf3 {[%emt 0:00:02]} Ng4 {[%emt 0:00:03]} 32. b4 {[%emt 0:00:03]} Ne3 {[%emt 0:00:05]} 33. Bxe3 {[%emt 0:00:03]} dxe3 {[%emt 0:00:02]} 34. Re1 {[%emt 0:00:01]} Bg7 {[%emt 0:00:07]} 35. e5 {[%emt 0:00:06]} Ra2 {[%emt 0:00:05]} 36. Rxe3 {[%emt 0:00:10]} Rxa3 {[%emt 0:00:01]} 37. Nd4 {[%emt 0:00:02]} Bxg2 {[%emt 0:00:03]} 38. Kxg2 {[%emt 0:00:00]} Bf8 {[%emt 0:00:02]} 39. Nc6 {[%emt 0:00:04]} Rc3 {[%emt 0:00:04]} 40. Nb8 {[%emt 0:00:01]} Bxb4 {[%emt 0:00:05]} 41. Nxa6 {[%emt 0:00:01]} Rc2+ {[%emt 0:00:02]} 42. Kf3 {[%emt 0:00:04]} Bc3 {[%emt 0:00:03]} 43. d4 {[%emt 0:00:07]} Bxd4 {[%emt 0:00:03]} 44. Rb3 {[%emt 0:00:00]} Rc3+ {[%emt 0:00:02]} 45. Rxc3 {[%emt 0:00:04]} Bxc3 {[%emt 0:00:01]} 46. Nc5 {[%emt 0:00:01]} h5 {[%emt 0:00:05]} 47. g4 {[%emt 0:00:03]} h4 {[%emt 0:00:02]} 48. Kg2 {[%emt 0:00:03]} b4 {[%emt 0:00:02]} 49. Kh3 {[%emt 0:00:02]} Bd2 {[%emt 0:00:04]} 50. f5 {[%emt 0:00:02]} g5 {[%emt 0:00:02]} 51. Nd3 {[%emt 0:00:04]} b3 {[%emt 0:00:02]} 52. Nb2 {[%emt 0:00:03]} Bc3 {[%emt 0:00:02]} 53. Nd1 {[%emt 0:00:01]} Bxe5 {[%emt 0:00:03]} 54. f6 {[%emt 0:00:03]} b2 {[%emt 0:00:03]} 0-1